bitfinex-derivatives/quotes_ETHF0:USTF0_20260119
["timestamp","ask_amount","ask_price","bid_price","bid_amount"]
[1768790571426,3.41659779,3215.4,3213.8,6.61756149]
[1768790571722,0.8280747,3215.3,3213.8,6.61756149]
[1768790571923,3.41659779,3215.4,3213.8,6.61756149]
[1768790572119,0.82807337,3215.3,3214.0,4.79387777]
[1768790572321,0.83814992,3215.6,3214.0,4.79387777]
[1768790572714,1.66622671,3215.6,3214.0,4.79387777]
[1768790573316,0.82807679,3215.5,3214.0,4.79387777]
[1768790573810,0.84282085,3215.7,3214.0,4.79387777]
[1768790574013,0.82808199,3215.6,3214.0,4.79387777]
[1768790574214,0.82808199,3215.5,3214.0,4.79387777]
[1768790574418,0.84282085,3215.7,3214.0,4.79387777]
[1768790574625,0.82811692,3215.6,3214.0,4.79387777]
[1768790574826,0.82811692,3215.5,3214.0,4.79387777]
[1768790575123,0.00467093,3215.7,3214.1,3.24404339]
[1768790575318,0.82815458,3215.6,3214.1,3.24404339]
[1768790575519,0.82815458,3215.5,3214.1,3.24404339]
[1768790575823,0.00467093,3215.7,3214.1,3.24404339]
[1768790576025,0.82812784,3215.6,3214.1,3.24404339]
[1768790576223,0.82812784,3215.5,3214.1,3.24404339]
[1768790576424,0.00467093,3215.7,3214.1,3.24404339]
[1768790576622,0.82816899,3215.6,3214.1,3.24404339]
[1768790576823,0.82816899,3215.5,3214.1,3.24404339]
[1768790577026,0.00467093,3215.7,3214.1,3.24404339]
[1768790577227,0.82816883,3215.6,3214.1,3.24404339]
[1768790577528,0.82816883,3215.5,3214.1,3.24404339]
[1768790577723,0.00467093,3215.7,3214.1,3.24404339]
[1768790577930,0.00467093,3215.7,3214.4,4.53482804]
[1768790578830,0.00241328,3216.0,3214.8,4.53482804]
[1768790580127,0.00241328,3216.0,3214.8,3.24404339]
[1768790580330,0.00241328,3216.0,3214.4,3.24404339]
[1768790580331,3.37130797,3216.0,3214.4,3.24404339]
[1768790580524,3.36889469,3215.8,3214.0,3.24404339]
[1768790580727,4.20175947,3215.7,3214.0,5.00504339]
[1768790580922,3.36889469,3215.7,3214.0,5.00504339]
[1768790581119,3.36889469,3215.7,3213.8,3.11446837]
[1768790581120,4.20184035,3215.6,3213.8,0.00246837]
[1768790581326,3.37356562,3215.2,3213.8,0.00246837]
[1768790582324,4.20186512,3215.1,3213.8,0.00246837]
[1768790582523,3.36889469,3215.1,3213.8,0.00246837]
[1768790583030,4.20181784,3215.0,3213.8,0.00246837]
[1768790583231,0.83292315,3214.9,3213.8,0.00246837]
[1768790586230,4.20181784,3214.9,3213.8,0.00246837]
[1768790586430,3.36889469,3214.9,3213.8,0.00246837]
[1768790589834,0.84282085,3215.2,3213.8,0.00246837]
[1768790590135,0.83175349,3215.1,3213.8,0.00246837]
[1768790590336,0.83175349,3215.0,3213.8,0.00246837]
[1768790590538,4.21171554,3215.2,3213.8,0.00246837]
[1768790590830,0.83165435,3215.1,3213.8,0.00246837]
[1768790591035,0.83165435,3215.0,3213.8,0.00246837]
[1768790591230,4.21171554,3215.2,3213.8,0.00246837]
[1768790591428,0.83161104,3215.1,3213.8,0.00246837]
[1768790591634,0.83161104,3215.0,3213.8,0.00246837]
[1768790591830,4.21171554,3215.2,3213.8,0.00246837]
[1768790592031,0.83160248,3215.1,3213.8,0.00246837]
[1768790592233,0.83160248,3215.0,3213.8,0.00246837]
[1768790592435,3.37356562,3215.2,3213.8,0.00246837]
[1768790592636,0.00467093,3215.2,3213.8,4.53729641]
[1768790593029,0.00467093,3215.2,3214.2,1.29078465]
[1768790596944,0.00467093,3215.2,3214.2,4.53482804]
[1768790597743,4.20945789,3216.0,3214.3,3.24404339]
[1768790597943,0.83315752,3215.9,3214.3,3.24404339]
[1768790598143,0.83315752,3215.8,3214.3,3.24404339]
[1768790598343,4.20945789,3216.0,3214.3,3.24404339]
[1768790598547,0.83315629,3215.9,3214.3,3.24404339]
[1768790598739,0.83315629,3215.8,3214.3,3.24404339]
[1768790598939,4.20945789,3216.0,3214.3,3.24404339]
[1768790599246,0.83316261,3215.9,3214.3,3.24404339]
[1768790599446,0.83316261,3215.8,3214.3,3.24404339]
[1768790599649,3.37130797,3216.0,3214.3,3.24404339]
[1768790599841,0.83316704,3215.9,3214.3,3.24404339]
[1768790600044,0.83316704,3215.8,3214.3,3.24404339]
[1768790600344,3.37130797,3216.0,3214.3,3.24404339]
[1768790600541,0.83311177,3215.9,3214.3,3.24404339]
[1768790600739,0.83311177,3215.8,3214.3,3.24404339]
[1768790600940,3.37130797,3216.0,3214.3,3.24404339]
[1768790601144,0.83311161,3215.9,3214.3,3.24404339]
[1768790601340,0.83311161,3215.8,3214.3,3.24404339]
[1768790601535,3.37130797,3216.0,3214.3,3.24404339]
[1768790601746,0.83301851,3215.9,3214.3,3.24404339]
[1768790601944,0.83301851,3215.8,3214.3,3.24404339]
[1768790602247,3.37130797,3216.0,3214.3,3.24404339]
[1768790602446,0.83293464,3215.9,3214.3,3.24404339]
[1768790602646,0.83293464,3215.9,3214.2,1.29078465]
[1768790602647,3.31633513,3215.7,3214.2,1.29078465]
[1768790602943,0.8329999,3215.6,3213.9,3.46398113]
[1768790603148,3.31633513,3215.4,3213.9,1.761]
[1768790612958,3.31633513,3215.2,3213.8,1.76446837]
[1768790613444,4.14986927,3215.1,3213.8,1.76446837]
[1768790613645,3.31633513,3215.1,3213.8,1.76446837]
[1768790616857,3.31633513,3215.1,3213.9,1.29138324]
[1768790617152,4.15001119,3215.0,3213.8,3.05585161]
[1768790617356,3.31633513,3215.0,3213.8,3.05585161]
[1768790618356,0.83381863,3214.9,3213.8,3.05585161]
[1768790618558,3.31633513,3215.0,3213.8,3.05585161]
[1768790618757,0.83381863,3214.9,3213.8,3.05585161]
[1768790618960,3.31633513,3215.0,3213.8,3.05585161]
[1768790619461,0.83387418,3214.9,3213.8,3.05585161]
[1768790619664,3.31633513,3215.0,3213.8,3.05585161]
[1768790619960,0.83387418,3214.9,3213.8,3.05585161]
[1768790620157,0.83835878,3215.2,3214.2,1.29138324]
[1768790620352,0.83386727,3215.1,3214.1,1.29138324]
[1768790620553,0.83386727,3215.0,3213.8,1.76446837]
[1768790620756,3.44728579,3215.0,3213.8,1.76446837]
[1768790620957,3.44728579,3215.0,3213.8,3.05585161]
[1768790621658,0.83397151,3214.9,3213.8,3.05585161]
[1768790621962,3.44728579,3215.0,3213.8,3.05585161]
[1768790622158,4.28125829,3214.9,3213.8,1.76446837]
[1768790622359,3.44728579,3214.9,3213.8,1.76446837]
[1768790622762,3.44728579,3214.8,3213.8,0.00246837]
[1768790626557,0.83835878,3215.5,3214.3,1.29138324]
[1768790626759,4.73866903,3215.1,3213.8,0.00246837]
[1768790627260,3.44728579,3215.0,3213.8,0.00246837]
[1768790627561,3.44728579,3214.8,3213.8,0.00246837]
[1768790630769,4.73866903,3214.7,3213.8,0.00246837]
[1768790630961,3.44728579,3214.6,3213.8,0.00246837]
[1768790631161,3.44728579,3214.6,3213.4,1.29138324]
[1768790631564,3.44728579,3214.6,3213.3,1.762]
[1768790631760,3.44728579,3214.3,3212.5,3.89860697]
[1768790632077,6.72866903,3214.7,3213.4,1.29138324]
[1768790632273,4.27992375,3214.6,3213.1,1.29138324]
[1768790632574,0.83263796,3214.5,3213.1,1.29138324]
[1768790632772,0.83263796,3214.5,3213.7,1.29138324]
[1768790632965,3.49119675,3214.9,3213.7,1.29138324]
[1768790633273,0.83258931,3214.8,3213.7,1.29138324]
[1768790633464,0.83258931,3214.7,3213.7,1.29138324]
[1768790633664,3.49119675,3214.9,3213.7,1.29138324]
[1768790633871,1.10909275,3215.3,3213.8,3.30642201]
[1768790634076,3.49119675,3215.8,3214.8,1.29138324]
[1768790634278,3.49119675,3215.8,3214.8,1.29437324]
[1768790634477,3.49119675,3215.8,3214.8,0.00299]
[1768790634970,4.78257999,3215.1,3213.7,1.29138324]
[1768790635772,3.49119675,3215.1,3213.7,1.29138324]
[1768790635968,3.49119675,3215.1,3213.7,1.29501038]
[1768790637372,1.993,3215.7,3213.7,1.29501038]
[1768790637373,3.49119675,3215.6,3214.3,1.29138324]
[1768790637572,3.49119675,3215.6,3214.7,1.29138324]
[1768790638165,3.49119675,3215.6,3214.0,4.5514012]
[1768790638373,3.49361003,3216.0,3214.9,1.29138324]
[1768790643578,3.49119675,3215.6,3214.3,1.29138324]
[1768790645679,3.49119675,3215.6,3214.5,1.29138324]
[1768790646678,3.49119675,3215.6,3214.3,1.29138324]
[1768790647080,3.49119675,3215.6,3214.0,1.29138324]
[1768790647277,3.49119675,3215.6,3214.4,1.29138324]
[1768790647481,3.49119675,3215.6,3214.8,1.29138324]
[1768790647787,0.00241328,3216.0,3214.0,1.29138324]
[1768790647788,0.00241328,3216.0,3215.1,1.29138324]
[1768790648082,0.82546168,3215.9,3214.9,1.29138324]
[1768790648384,0.82546168,3215.8,3214.9,1.29138324]
[1768790648689,3.49361003,3216.0,3214.9,1.29138324]
[1768790648887,0.82539613,3215.9,3214.9,1.29138324]
[1768790649092,0.82539613,3215.8,3214.9,1.29138324]
[1768790649289,3.49361003,3216.0,3214.9,1.29138324]
[1768790649594,0.8253461,3215.9,3214.9,1.29138324]
[1768790649891,0.8253461,3215.8,3214.9,1.29138324]
[1768790650087,3.49361003,3216.0,3214.9,1.29138324]
[1768790650290,0.82534609,3215.9,3214.9,1.29138324]
[1768790650491,0.82534609,3215.8,3214.9,1.29138324]
[1768790650790,3.49361003,3216.0,3214.9,1.29138324]
[1768790650989,0.82529449,3215.9,3214.9,1.29138324]
[1768790651189,0.82529449,3215.8,3214.9,1.29138324]
[1768790651392,3.49361003,3216.0,3214.8,1.29138324]
[1768790651690,0.82525965,3215.9,3214.8,1.29138324]
[1768790651885,0.82525965,3215.8,3214.8,1.29138324]
[1768790652085,3.49361003,3216.0,3214.8,1.29138324]
[1768790652295,0.82525886,3215.9,3214.8,1.29138324]
[1768790652497,3.49361003,3216.0,3214.8,1.29138324]
[1768790653291,3.49361003,3216.0,3215.0,1.29138324]
[1768790653692,3.49361003,3216.0,3214.3,3.21771601]
[1768790653894,3.49361003,3216.0,3214.8,1.29138324]
[1768790654196,0.00241328,3216.0,3215.0,1.29138324]
[1768790654387,0.00241328,3216.0,3214.6,3.20624238]
[1768790654388,0.00241328,3216.0,3215.2,1.29138324]
[1768790654589,1.29138324,3215.4,3213.8,3.30642201]
[1768790654789,3.49119675,3215.7,3214.6,1.29138324]
[1768790654790,5.48519675,3215.7,3214.6,1.29138324]
[1768790654998,0.00241328,3216.0,3215.0,1.29138324]
[1768790655295,0.8211724,3215.9,3214.1,3.30642201]
[1768790655493,0.8211724,3215.8,3214.8,1.29138324]
[1768790655688,0.00241328,3216.0,3214.8,1.29138324]
[1768790655689,3.49361003,3216.0,3214.8,1.29138324]
[1768790655889,0.82203802,3215.9,3214.8,1.29138324]
[1768790656095,0.82203802,3215.8,3214.8,1.29138324]
[1768790656294,3.49361003,3216.0,3214.8,1.29138324]
[1768790656496,0.82213473,3215.9,3214.8,1.29138324]
[1768790656694,0.82213473,3215.8,3214.8,1.29138324]
[1768790656894,3.49361003,3216.0,3214.8,1.29138324]
[1768790657191,0.82213487,3215.9,3214.8,1.29138324]
[1768790657399,0.82213487,3215.8,3214.8,1.29138324]
[1768790657592,3.49361003,3216.0,3214.8,1.29138324]
[1768790657789,0.82215114,3215.9,3214.8,1.29138324]
[1768790657994,0.82215114,3215.8,3214.8,1.29138324]
[1768790658195,3.49361003,3216.0,3214.8,1.29138324]
[1768790658390,0.00241328,3216.0,3215.2,1.29138324]
[1768790659805,0.00241328,3216.0,3215.0,1.29138324]
[1768790661202,0.00241328,3216.0,3214.4,3.30642201]
[1768790661403,0.00241328,3216.0,3214.9,1.29138324]
[1768790662196,0.00241328,3216.0,3214.4,3.30642201]
[1768790662397,0.00241328,3216.0,3215.0,1.29138324]
[1768790665406,0.00241328,3216.0,3215.2,1.29138324]
[1768790665710,1.10909275,3216.6,3215.6,1.29138324]
[1768790665903,1.9332314,3216.6,3215.4,1.29138324]
[1768790666608,5.392476,3216.6,3215.2,1.29138324]
[1768790666808,0.82413865,3216.5,3215.2,1.29138324]
[1768790667406,1.9332314,3216.5,3215.2,1.29138324]
[1768790668408,0.82413865,3216.4,3215.2,1.29138324]
[1768790668603,0.82413865,3216.3,3215.5,1.29138324]
[1768790668796,3.46226076,3216.6,3215.3,1.29138324]
[1768790668998,0.82431589,3216.5,3215.3,1.29138324]
[1768790669201,0.82431589,3216.4,3215.3,1.29138324]
[1768790669507,0.82431589,3216.3,3215.3,1.29138324]
[1768790669709,3.46226076,3216.6,3215.3,1.29138324]
[1768790670011,0.82417322,3216.5,3215.3,1.29138324]
[1768790670309,0.82417322,3216.4,3215.3,1.29138324]
[1768790670510,3.46226076,3216.6,3215.5,1.29138324]
[1768790670702,0.82401776,3216.5,3215.5,1.29138324]
[1768790670902,0.82401776,3216.4,3215.5,1.29138324]
[1768790671204,3.46226076,3216.6,3215.5,1.29138324]
[1768790671400,0.8240149,3216.5,3215.5,1.29138324]
[1768790671598,0.8240149,3216.4,3215.5,1.29138324]
[1768790671801,3.46226076,3216.6,3215.5,1.29138324]
[1768790672004,0.82387965,3216.5,3215.3,1.29138324]
[1768790672204,0.82387965,3216.4,3215.3,1.29138324]
[1768790672410,3.46226076,3216.6,3215.3,1.29138324]
[1768790672605,0.82376369,3216.5,3215.3,1.29138324]
[1768790672913,4.75062784,3216.2,3214.6,3.32431027]
[1768790673113,1.29138324,3215.7,3214.2,5.08431027]
[1768790673312,1.29138324,3214.6,3213.7,0.00362714]
[1768790673615,1.29138324,3214.9,3213.7,0.00362714]
[1768790673804,0.82389768,3214.8,3213.7,0.00362714]
[1768790674109,0.82389768,3214.7,3213.7,0.00362714]
[1768790674317,0.00467093,3214.6,3213.7,0.00362714]
[1768790674613,3.46391553,3214.6,3213.7,0.00362714]
[1768790674915,3.4592446,3214.3,3212.5,3.32431027]
[1768790675109,4.28260765,3214.2,3212.5,3.32431027]
[1768790675412,2.012,3214.5,3212.5,3.32431027]
[1768790675609,4.28187515,3214.4,3212.5,3.32431027]
[1768790675812,3.46150324,3214.4,3212.5,3.32670842]
[1768790676407,3.4592446,3214.3,3212.5,3.32670842]
[1768790679911,0.00225864,3214.4,3212.5,3.32670842]
[1768790681310,0.00225864,3214.4,3212.7,3.30336847]
[1768790684919,0.00225864,3214.4,3212.7,3.45906847]
[1768790688817,3.48365374,3214.3,3212.5,0.00239815]
[1768790689214,3.48365374,3214.3,3212.5,3.30576662]
[1768790690615,3.48365374,3214.3,3212.5,0.00239815]
[1768790692625,3.4455308,3214.1,3212.5,0.00239815]
[1768790694527,40.80225864,3214.4,3211.3,3.26960525]
[1768790694528,3.4455308,3213.7,3211.3,3.26960525]
[1768790695213,0.00467093,3212.8,3211.3,3.26960525]
[1768790695417,0.00467093,3212.8,3211.3,3.27222189]
[1768790701425,3.45020173,3212.8,3211.3,3.27222189]
[1768790701623,3.45020173,3212.8,3211.3,0.00261664]
[1768790702930,0.00467093,3212.8,3211.3,3.27222189]
[1768790703522,0.00467093,3212.8,3211.3,5.03322189]
[1768790705146,0.00467093,3212.8,3211.3,1.76361664]
[1768790705147,3.45020173,3212.8,3211.3,1.76361664]
[1768790705333,3.45020173,3212.8,3211.3,0.00261664]
[1768790707328,0.00467093,3212.8,3211.3,3.27222189]
[1768790711132,0.00467093,3212.8,3211.3,3.42798189]
[1768790712730,0.00467093,3212.8,3211.4,1.762]
[1768790715826,0.00467093,3212.8,3211.3,3.42798189]
[1768790716033,0.00467093,3212.8,3211.4,1.762]
[1768790716334,0.00467093,3212.8,3211.5,1.762]
[1768790717134,0.00467093,3212.8,3211.6,1.762]
[1768790717333,0.00467093,3212.8,3211.3,3.27222189]
[1768790717534,0.00467093,3212.8,3211.4,1.762]
[1768790718745,3.45020173,3212.8,3211.3,0.00261664]
[1768790718939,3.4455308,3212.6,3211.3,0.00261664]
[1768790721043,3.4455308,3212.4,3211.3,0.00261664]
[1768790721247,3.4455308,3212.2,3211.3,0.00261664]
[1768790721435,4.27766137,3212.1,3210.8,1.762]
[1768790721642,3.4455308,3212.1,3210.8,1.762]
[1768790722442,3.4490277,3212.1,3210.8,1.76430102]
[1768790723350,0.0034969,3212.1,3210.8,1.76430102]
[1768790723649,0.0034969,3212.1,3210.9,3.51061445]
[1768790729148,0.0034969,3212.1,3210.8,0.00230102]
[1768790729349,0.0034969,3212.1,3211.0,1.762]
[1768790731449,0.0034969,3212.1,3210.8,0.00230102]
[1768790731651,0.0034969,3212.1,3210.9,1.762]
[1768790732152,0.0034969,3212.1,3210.9,5.27261445]
[1768790732353,0.0034969,3212.1,3211.0,3.51061445]
[1768790736457,0.00467093,3212.8,3211.0,3.51061445]
[1768790736851,0.00467093,3212.8,3211.7,1.29270348]
[1768790737056,0.00467093,3212.8,3211.7,3.05470348]
[1768790737449,0.00693911,3212.8,3211.7,3.05470348]
[1768790738265,0.00693911,3212.8,3211.7,1.762]
[1768790739056,0.00693911,3212.8,3211.7,3.05500956]
[1768790740153,0.00693911,3212.8,3211.9,1.29300956]
[1768790740851,0.00693911,3212.8,3211.7,1.762]
[1768790741157,4.73265268,3212.7,3211.5,1.762]
[1768790745356,4.73265268,3212.7,3211.4,1.762]
[1768790747064,3.43964312,3212.6,3211.4,1.762]
[1768790747265,3.43964312,3212.6,3211.2,1.29300956]
[1768790747266,3.43964312,3212.6,3211.3,1.762]
[1768790748857,0.00693911,3212.8,3211.5,1.29300956]
[1768790749167,0.00693911,3212.8,3211.8,1.29300956]
[1768790754070,0.00693911,3212.8,3211.4,3.52084099]
[1768790754270,0.00693911,3212.8,3211.8,1.29300956]
[1768790759369,0.00693911,3212.8,3212.0,1.29300956]
[1768790760771,0.00693911,3212.8,3211.4,3.52084099]
[1768790761074,0.00693911,3212.8,3211.8,1.29300956]
[1768790761972,0.00693911,3212.8,3211.7,3.36105973]
[1768790762478,0.00693911,3212.8,3211.7,4.65406929]
[1768790763775,0.00693911,3212.8,3211.7,3.36105973]
[1768790765571,0.00693911,3212.8,3211.7,4.65406929]
[1768790766073,0.00693911,3212.8,3211.7,1.29300956]
[1768790769679,0.00693911,3212.8,3211.7,4.65406929]
[1768790770582,0.83468643,3212.7,3211.7,4.65406929]
[1768790770770,0.00693911,3212.8,3211.7,4.65406929]
[1768790770975,0.83468646,3212.7,3211.7,4.65406929]
[1768790771173,0.00693911,3212.8,3211.7,4.65406929]
[1768790771484,0.83469698,3212.7,3211.7,4.65406929]
[1768790771675,0.00693911,3212.8,3211.7,4.65406929]
[1768790771875,0.83468152,3212.7,3211.7,4.65406929]
[1768790772078,0.00693911,3212.8,3211.9,1.29300956]
[1768790774692,0.00693911,3212.8,3212.1,1.29300956]
[1768790778080,0.00693911,3212.8,3211.9,1.763]
[1768790786592,0.00693911,3212.8,3211.7,3.36105973]
[1768790786793,0.00693911,3212.8,3211.8,1.765]
[1768790788392,0.00693911,3212.8,3211.7,3.36105973]
[1768790788695,0.00693911,3212.8,3211.9,1.766]
[1768790791790,0.00693911,3212.8,3211.6,3.25689103]
[1768790791991,0.00693911,3212.8,3211.7,1.766]
[1768790795600,0.00693911,3212.8,3211.7,5.02289103]
[1768790796399,4.87413851,3212.8,3211.3,2.7938737]
[1768790796596,4.87413851,3212.8,3211.4,3.25689103]
[1768790796795,1.29994867,3212.8,3211.4,3.25689103]
[1768790798903,0.00693911,3212.8,3211.4,3.25689103]
[1768790812124,3.48523565,3212.8,3211.3,4.5618737]
[1768790812325,3.47829654,3212.4,3211.0,3.89860697]
[1768790812523,3.47829654,3212.4,3210.8,0.00230102]
[1768790812724,4.23887306,3212.3,3210.8,0.00230102]
[1768790812927,3.40520093,3212.3,3210.8,0.00230102]
[1768790816023,3.40520093,3212.1,3210.8,0.00230102]
[1768790816418,0.83254379,3212.0,3210.8,0.00230102]
[1768790816626,4.23774472,3211.9,3210.8,0.00230102]
[1768790816821,3.40520093,3211.9,3210.8,0.00230102]
[1768790820432,5.43120093,3211.9,3210.8,0.00230102]
[1768790820737,3.40520093,3211.8,3210.8,0.00230102]
[1768790821835,3.40520093,3211.7,3209.5,6.5874435]
[1768790822037,3.40520093,3211.5,3209.5,6.5874435]
[1768790822235,3.40520093,3211.3,3209.5,6.5874435]
[1768790822740,0.00467093,3210.8,3209.5,6.59092593]
[1768790823333,0.8386571,3211.7,3209.8,3.4734435]
[1768790823334,2.03,3211.7,3209.8,3.4734435]
[1768790823635,2.03,3211.6,3210.2,3.4734435]
[1768790823836,5.43520093,3211.8,3210.2,3.4734435]
[1768790824236,3.40520093,3211.7,3210.2,3.4734435]
[1768790825538,5.43720093,3211.7,3210.2,1.29320396]
[1768790825733,3.40520093,3211.7,3210.2,1.29320396]
[1768790825945,3.40520093,3211.7,3210.3,3.4734435]
[1768790827643,3.40520093,3211.7,3210.2,1.29320396]
[1768790831650,0.00467093,3211.3,3210.2,1.29320396]
[1768790834049,0.00467093,3211.3,3210.2,4.76664746]
[1768790838352,3.40520093,3212.1,3210.6,1.29320396]
[1768790838540,3.40520093,3212.5,3211.1,1.29320396]
[1768790839552,3.40520093,3212.5,3211.5,0.00467093]
[1768790842153,0.8311819,3212.4,3211.5,0.00467093]
[1768790842352,3.40520093,3212.5,3211.5,0.00467093]
[1768790842550,0.8311332,3212.4,3211.5,0.00467093]
[1768790842747,3.40520093,3212.5,3211.5,0.00467093]
[1768790843054,0.8311332,3212.4,3211.5,0.00467093]
[1768790843247,3.40520093,3212.5,3211.5,0.00467093]
[1768790843449,0.83119346,3212.4,3211.5,0.00467093]
[1768790843651,3.40520093,3212.5,3211.5,0.00467093]
[1768790843852,3.31249652,3212.3,3210.4,2.7938737]
[1768790844157,3.30782559,3211.5,3209.8,3.89860697]
[1768790844340,3.30782559,3211.5,3209.5,0.00348243]
[1768790844341,4.60102955,3210.8,3209.5,0.00348243]
[1768790844547,3.30782559,3210.8,3209.5,0.00348243]
[1768790845257,3.30782559,3210.8,3209.8,0.00467093]
[1768790845848,0.00467093,3210.6,3209.8,0.00467093]
[1768790851353,3.31249652,3210.6,3209.8,0.00467093]
[1768790851657,3.31249652,3210.6,3209.5,0.00348243]
[1768790856353,3.30782559,3210.4,3209.4,0.006232]
[1768790856649,3.30782559,3210.4,3208.5,1.769]
[1768790857452,3.31016131,3210.4,3208.5,1.77236886]
[1768790858260,3.31016131,3210.4,3208.5,0.00336886]
[1768790858951,3.5595153,3209.9,3208.6,1.29550167]
[1768790861761,3.5595153,3209.9,3208.5,1.29887053]
[1768790863558,3.5595153,3209.9,3208.5,0.00336886]
[1768790863767,4.85501697,3209.6,3208.5,0.00336886]
[1768790864065,3.5595153,3209.5,3208.5,0.00336886]
[1768790864251,4.85501697,3209.0,3208.5,0.00336886]
[1768790864447,4.85501697,3209.0,3207.5,3.89860697]
[1768790864448,4.85501697,3209.0,3207.6,1.29550167]
[1768790865058,4.85501697,3209.0,3207.8,1.29550167]
[1768790865258,0.00467093,3208.6,3207.8,1.29550167]
[1768790865460,3.5595153,3210.1,3208.3,1.29550167]
[1768790865659,3.5595153,3210.0,3208.6,1.29550167]
[1768790866162,3.5595153,3210.0,3208.0,4.75172032]
[1768790866360,3.5595153,3209.8,3208.4,1.29550167]
[1768790866755,3.5595153,3209.8,3208.5,1.29550167]
[1768790867051,3.5595153,3209.6,3208.0,3.45621865]
[1768790867260,3.5595153,3209.6,3208.2,1.29550167]
[1768790867754,4.85501697,3209.5,3208.2,1.29550167]
[1768790867959,1.29550167,3208.9,3207.8,0.00357496]
[1768790868156,3.5595153,3209.0,3207.8,0.00357496]
[1768790868761,3.5595153,3209.0,3207.9,1.29550167]
[1768790869661,3.5595153,3209.0,3208.1,1.29550167]
[1768790870164,3.5595153,3209.9,3208.9,1.29550167]
[1768790870358,3.5595153,3209.9,3208.7,1.29550167]
[1768790871457,3.5595153,3209.9,3208.6,1.29550167]
[1768790872065,3.5595153,3209.8,3208.6,1.29550167]
[1768790873358,3.5595153,3209.8,3208.9,0.00467093]
[1768790880964,3.37097937,3210.3,3209.6,1.29550167]
[1768790881162,0.00233572,3210.4,3209.0,1.29550167]
[1768790881475,0.00233572,3210.4,3209.6,1.29550167]
[1768790882178,0.00233572,3210.4,3209.2,1.29550167]
[1768790882974,0.00233572,3210.4,3209.4,1.29550167]
[1768790883164,0.00233572,3210.4,3209.0,1.45138167]
[1768790883360,0.00233572,3210.4,3209.4,1.29550167]
[1768790883965,0.00233572,3210.4,3209.0,0.15588]
[1768790884168,0.00233572,3210.4,3209.4,1.29550167]
[1768790884362,3.37331509,3210.4,3209.3,1.29550167]
[1768790884872,3.37331509,3210.4,3209.0,0.15588]
[1768790885073,3.37331509,3210.4,3209.3,1.29550167]
[1768790885673,3.37331509,3210.4,3209.1,1.29550167]
[1768790886974,4.66648104,3209.9,3208.9,0.00467093]
[1768790887173,3.37097937,3209.8,3208.9,0.00467093]
[1768790888173,3.37097937,3209.8,3209.0,1.29550167]
[1768790888370,3.37097937,3209.8,3208.9,0.00467093]
[1768790888671,0.00233572,3210.4,3209.0,1.29550167]
[1768790888876,0.00233572,3210.4,3208.9,0.00467093]
[1768790888877,3.37097937,3210.3,3209.3,1.29550167]
[1768790889670,3.37097937,3210.3,3209.2,1.29550167]
[1768790890372,3.37097937,3210.3,3209.1,1.29550167]
[1768790890779,3.37097937,3210.2,3208.9,0.00467093]
[1768790891674,3.37097937,3210.0,3208.9,0.00467093]
[1768790894478,3.37097937,3210.0,3209.1,1.29550167]
[1768790897170,3.37097937,3210.0,3208.9,0.00467093]
[1768790899369,3.37331509,3210.4,3209.4,1.29550167]
[1768790899575,3.37331509,3210.4,3209.5,1.29550167]
[1768790900183,3.37331509,3210.4,3209.3,1.29550167]
[1768790900982,3.37331509,3210.4,3208.9,0.00467093]
[1768790901174,3.37331509,3210.4,3209.2,1.29550167]
[1768790901375,3.37331509,3210.4,3208.9,0.00467093]
[1768790901576,3.37331509,3210.4,3209.2,1.29550167]
[1768790902274,3.37331509,3210.4,3209.4,1.29550167]
[1768790905081,0.00233572,3210.4,3209.4,1.29550167]
[1768790905284,0.00233572,3210.4,3208.9,0.00467093]
[1768790905285,0.00233572,3210.4,3209.5,1.29550167]
[1768790906585,0.00233572,3210.4,3209.0,1.29550167]
[1768790906786,3.33073311,3210.3,3208.9,2.79854463]
[1768790906987,3.33073311,3210.3,3208.9,1.3001726]
[1768790908889,3.33073311,3210.3,3209.1,1.29550167]
[1768790909492,3.33073311,3210.3,3208.9,2.79854463]
[1768790909689,3.33073311,3210.3,3209.0,1.29550167]
[1768790912600,3.33073311,3210.3,3209.2,1.29550167]
[1768790913193,3.33073311,3210.3,3209.0,1.29550167]
[1768790914587,3.33073311,3209.6,3208.9,0.00467093]
[1768790915197,3.33073311,3209.6,3208.4,1.29550167]
[1768790915502,3.33073311,3209.6,3208.6,1.29550167]
[1768790916395,0.00467093,3209.4,3208.6,1.29550167]
[1768790916587,0.00467093,3209.4,3208.2,4.5628737]
[1768790916588,3.33540404,3209.4,3208.2,2.7938737]
[1768790916783,3.33073311,3209.3,3208.2,1.29550167]
[1768790917186,3.33073311,3209.3,3207.8,0.00357496]
[1768790917394,3.33073311,3209.3,3208.1,1.29550167]
[1768790917588,3.33073311,3209.3,3208.4,1.29550167]
[1768790919299,3.33073311,3209.3,3208.2,1.29550167]
[1768790920794,3.33073311,3209.3,3208.1,1.29550167]
[1768790921095,3.33073311,3209.3,3207.8,0.00357496]
[1768790923399,0.00467093,3209.4,3208.1,1.29581523]
[1768790923794,0.00467093,3209.4,3208.2,1.77]
[1768790926408,0.00467093,3209.4,3208.2,1.92592]
[1768790930204,0.00467093,3209.4,3208.5,1.29581523]
[1768790932409,0.00233572,3210.4,3209.3,1.29581523]
[1768790932614,3.26797634,3210.4,3209.3,1.29581523]
[1768790933112,0.00233572,3210.4,3209.3,1.29581523]
[1768790934408,0.00233572,3210.4,3209.1,0.15587]
[1768790937920,0.00233572,3210.4,3208.6,0.00467093]
[1768790937921,3.26797634,3210.4,3208.6,0.00467093]
[1768790938215,3.26797634,3210.4,3208.7,4.887]
[1768790942208,3.26797634,3210.4,3208.9,1.29581523]
[1768790943406,3.26797634,3210.4,3208.9,1.45169523]
[1768790944004,0.00233572,3210.4,3209.3,1.29581523]
[1768790944310,3.26564062,3211.2,3210.1,1.29581523]
[1768790944511,3.26564062,3212.1,3210.2,1.771]
[1768790944811,3.26564062,3211.9,3210.5,1.29581523]
[1768790945015,3.26564062,3211.9,3210.2,1.771]
[1768790945212,3.26873851,3211.9,3210.2,1.77397516]
[1768790945515,3.26873851,3211.9,3210.2,1.92979516]
[1768790946013,0.00309789,3211.9,3210.8,1.29581523]
[1768790946511,3.26873851,3211.9,3210.4,0.15581]
[1768790946816,3.26873851,3211.9,3210.5,1.771]
[1768790947206,3.26873851,3211.9,3210.8,1.29581523]
[1768790948007,0.00309789,3211.9,3210.8,1.29581523]
[1768790948913,0.00309789,3211.9,3210.5,1.771]
[1768790955115,0.00309789,3211.9,3210.4,0.15581]
[1768790955321,3.26873851,3211.9,3210.2,1.77297516]
[1768790955821,3.26873851,3211.9,3210.2,0.00297516]
[1768790963431,3.3865108,3211.7,3210.2,0.00297516]
[1768790964227,3.3865108,3211.7,3209.3,0.15586]
[1768790964531,3.3865108,3211.5,3209.1,1.77]
[1768790964722,1.82472105,3211.6,3209.1,1.77]
[1768790964723,3.3865108,3211.3,3209.1,1.77]
[1768790964923,3.3865108,3211.3,3210.0,0.00467093]
[1768790965430,3.3865108,3211.3,3210.0,0.00707583]
[1768790977038,3.3865108,3211.3,3210.0,0.16290583]
[1768790978641,3.3865108,3211.3,3210.0,1.93290583]